fUST/lending_fUST_20250904
["ID","MTS","AMOUNT","RATE_DAILY","PERIOD"]
[383402237,1756926666507,-480.0,0.00015342,2]
[383402238,1756926666523,-480.0,0.00015342,2]
[383402239,1756926666538,-480.0,0.00015342,2]
[383402240,1756926666553,-480.0,0.00015342,2]
[383402241,1756926666567,-480.0,0.00015342,2]
[383402242,1756926666583,-480.0,0.00015342,2]
[383402243,1756926666599,-1500.0,0.00015368,2]
[383402244,1756926666615,-483.11959194,0.00015396,2]
[383402245,1756926666629,-1000.0,0.000155,2]
[383402246,1756926666643,-260.0,0.00015529,2]
[383402247,1756926666658,-500.0,0.00015616,2]
[383402248,1756926666674,-364.17,0.00015616,2]
[383402249,1756926666689,-480.0,0.00015616,2]
[383402250,1756926666704,-480.0,0.00015616,2]
[383402251,1756926666720,-480.0,0.00015616,2]
[383402252,1756926666734,-568.4,0.00015616,2]
[383402253,1756926666749,-480.0,0.00015616,2]
[383402254,1756926666767,-480.0,0.00015616,2]
[383402255,1756926666782,-480.0,0.00015616,2]
[383402256,1756926666796,-480.0,0.00015616,2]
[383402257,1756926666811,-230.82,0.00015616,2]
[383402258,1756926666827,-480.0,0.00015616,2]
[383402259,1756926666841,-1073.25,0.00015616,2]
[383402260,1756926666858,-1250.12,0.00015616,2]
[383402261,1756926666872,-480.0,0.00015616,2]
[383402262,1756926666887,-457.75,0.00015616,2]
[383402263,1756926666902,-480.0,0.00015616,2]
[383402264,1756926666916,-203.25,0.00015616,2]
[383402265,1756926666932,-729.5,0.00015616,2]
[383402266,1756926666946,-480.0,0.00015616,2]
[383402267,1756926666961,-507.61,0.00015616,2]
[383402268,1756926666976,-480.0,0.00015616,2]
[383402269,1756926667067,-615.99,0.00015616,2]
[383402270,1756926667102,-480.0,0.00015616,2]
[383402271,1756926667112,-480.0,0.00015616,2]
[383402272,1756926667121,-685.98,0.00015616,2]
[383402273,1756926667130,-480.0,0.00015616,2]
[383402274,1756926667141,-545.87579054,0.00015616,2]
[383402275,1756926667150,-480.0,0.00015616,2]
[383402276,1756926667160,-480.0,0.00015616,2]
[383402277,1756926667170,-480.0,0.00015616,2]
[383402278,1756926667179,-480.0,0.00015616,2]
[383402279,1756926667189,-722.82,0.00015616,2]
[383402280,1756926667198,-480.0,0.00015616,2]
[383402281,1756926667208,-480.0,0.00015616,2]
[383402282,1756926667217,-480.0,0.00015616,2]
[383402283,1756926667227,-520.15207074,0.00015616,2]
[383402284,1756926667236,-480.0,0.00015616,2]
[383402285,1756926667245,-480.0,0.00015616,2]
[383402286,1756926667255,-329.96,0.00015616,2]
[383402287,1756926667265,-601.02813001,0.00015616,2]
[383402288,1756926667275,-2191.17,0.00015616,2]
[383402289,1756926667285,-672.58,0.00015616,2]
[383402290,1756926667295,-480.0,0.00015616,2]
[383402291,1756926667305,-480.0,0.00015616,2]
[383402292,1756926667315,-480.0,0.00015616,2]
[383402293,1756926667324,-480.0,0.00015616,2]
[383402294,1756926667334,-480.0,0.00015616,2]
[383402295,1756926667344,-480.0,0.00015616,2]
[383402296,1756926667354,-420.88699102,0.00015616,2]
[383402297,1756926667364,-480.0,0.00015616,2]
[383402298,1756926667373,-480.0,0.00015616,2]
[383402299,1756926667383,-377.94526038,0.00015616,2]
[383402300,1756926667392,-480.0,0.00015616,2]
[383402301,1756926667402,-480.0,0.00015616,2]
[383402302,1756926667411,-480.0,0.00015616,2]
[383402303,1756926667422,-839.49,0.00015616,2]
[383402304,1756926667432,-480.0,0.00015616,2]
[383402305,1756926667442,-480.0,0.00015616,2]
[383402306,1756926667452,-480.0,0.00015616,2]
[383402307,1756926667462,-480.0,0.00015616,2]
[383402308,1756926667472,-480.0,0.00015616,2]
[383402309,1756926667481,-480.0,0.00015616,2]
[383402310,1756926667491,-665.89,0.00015616,2]
[383402311,1756926667500,-480.0,0.00015616,2]
[383402312,1756926667510,-546.65,0.00015616,2]
[383402313,1756926667519,-480.0,0.00015616,2]
[383402314,1756926667530,-642.37,0.00015616,2]
[383402315,1756926667540,-480.0,0.00015616,2]
[383402316,1756926667549,-480.0,0.00015616,2]
[383402317,1756926667559,-480.0,0.00015616,2]
[383402318,1756926667568,-486.54,0.00015616,2]
[383402319,1756926667577,-480.0,0.00015616,2]
[383402320,1756926667587,-480.0,0.00015616,2]
[383402321,1756926667598,-480.0,0.00015616,2]
[383402322,1756926667607,-480.0,0.00015616,2]
[383402323,1756926667617,-168.0,0.0001584,2]
[383402324,1756926667627,-500.0,0.00015864,2]
[383402325,1756926667636,-1000.0,0.00015864,2]
[383402326,1756926667646,-820.21011115,0.00015864,2]
[383402327,1756926667655,-500.0,0.0001589,2]
[383402328,1756926667665,-522.8831726,0.0001589,2]
[383402329,1756926667675,-480.0,0.0001589,2]
[383402330,1756926667685,-480.0,0.0001589,2]
[383402331,1756926667694,-480.0,0.0001589,2]
[383402332,1756926667703,-342.62,0.0001589,2]
[383402333,1756926667713,-260.65,0.0001589,2]
[383402334,1756926667722,-1073.25,0.0001589,2]
[383402335,1756926667732,-1250.12,0.0001589,2]
[383402336,1756926667742,-480.0,0.0001589,2]
[383402337,1756926667752,-729.5,0.0001589,2]
[383402338,1756926667762,-480.0,0.0001589,2]
[383402339,1756926667771,-480.0,0.0001589,2]
[383402340,1756926667782,-480.0,0.0001589,2]
[383402341,1756926667791,-458.88,0.0001589,2]
[383402342,1756926667800,-685.98,0.0001589,2]
[383402343,1756926667810,-480.0,0.0001589,2]
[383402344,1756926667819,-582.88,0.0001589,2]
[383402345,1756926667829,-590.82,0.0001589,2]
[383402346,1756926667839,-609.9,0.0001589,2]
[383402347,1756926667848,-722.82,0.0001589,2]
[383402348,1756926667858,-494.4,0.0001589,2]
[383402349,1756926667868,-480.0,0.0001589,2]
[383402350,1756926667877,-392.9656838,0.0001589,2]
[383402351,1756926667887,-2191.17,0.0001589,2]
[383402352,1756926667897,-672.58,0.0001589,2]
[383402353,1756926667907,-480.0,0.0001589,2]
[383402354,1756926667916,-480.0,0.0001589,2]
[383402355,1756926667926,-480.0,0.0001589,2]
[383402356,1756926667936,-480.0,0.0001589,2]
[383402357,1756926667945,-530.48,0.0001589,2]
[383402358,1756926667955,-480.0,0.0001589,2]
[383402359,1756926667964,-480.0,0.0001589,2]
[383402360,1756926667974,-480.0,0.0001589,2]
[383402361,1756926667984,-480.0,0.0001589,2]
[383402362,1756926667993,-480.0,0.0001589,2]
[383402363,1756926668004,-839.49,0.0001589,2]
[383402364,1756926668013,-421.65023302,0.0001589,2]
[383402365,1756926668023,-480.0,0.0001589,2]
[383402366,1756926668033,-480.0,0.0001589,2]
[383402367,1756926668042,-480.0,0.0001589,2]
[383402368,1756926668052,-480.0,0.0001589,2]
[383402369,1756926668062,-665.89,0.0001589,2]
[383402370,1756926668072,-480.0,0.0001589,2]
[383402371,1756926668081,-546.65,0.0001589,2]
[383402372,1756926668091,-480.0,0.0001589,2]
[383402373,1756926668101,-642.37,0.0001589,2]
[383402374,1756926668110,-480.0,0.0001589,2]
[383402375,1756926668119,-480.0,0.0001589,2]
[383402376,1756926668129,-480.0,0.0001589,2]
[383402377,1756926668138,-480.0,0.0001589,2]
[383402378,1756926668148,-480.0,0.0001589,2]
[383402379,1756926668158,-480.0,0.0001589,2]
[383402380,1756926668167,-720.0,0.00015983,2]
[383402381,1756926668177,-1000.0,0.00016,2]
[383402382,1756926668187,-261.0,0.0001604,2]
[383402383,1756926668197,-261.0,0.00016057,2]
[383402384,1756926668207,-240.0,0.00016077,2]
[383402385,1756926668218,-168.0,0.00016079,2]
[383402386,1756926668230,-168.0,0.0001609,2]
[383402387,1756926668240,-168.0,0.00016098,2]
[383402388,1756926668250,-2089.44115771,0.00016104,2]
[383402389,1756926668262,-500.0,0.00016164,2]
[383402390,1756926668273,-480.0,0.00016164,2]
[383402391,1756926668283,-480.0,0.00016164,2]
[383402392,1756926668293,-480.0,0.00016164,2]
[383402393,1756926668303,-1073.25,0.00016164,2]
[383402394,1756926668313,-1250.12,0.00016164,2]
[383402395,1756926668322,-480.0,0.00016164,2]
[383402396,1756926668332,-729.5,0.00016164,2]
[383402397,1756926668341,-480.0,0.00016164,2]
[383402398,1756926668351,-246.96,0.00016164,2]
[383402399,1756926668361,-685.98,0.00016164,2]
[383402400,1756926668370,-480.0,0.00016164,2]
[383402401,1756926668380,-722.82,0.00016164,2]
[383402402,1756926668390,-480.0,0.00016164,2]
[383402403,1756926668399,-2191.17,0.00016164,2]
[383402404,1756926668409,-672.58,0.00016164,2]
[383402405,1756926668419,-480.0,0.00016164,2]
[383402406,1756926668428,-480.0,0.00016164,2]
[383402407,1756926668440,-480.0,0.00016164,2]
[383402408,1756926668451,-504.37,0.00016164,2]
[383402409,1756926668461,-480.0,0.00016164,2]
[383402410,1756926668470,-480.0,0.00016164,2]
[383402411,1756926668482,-839.49,0.00016164,2]
[383402412,1756926668493,-480.0,0.00016164,2]
[383402413,1756926668503,-480.0,0.00016164,2]
[383402414,1756926668512,-480.0,0.00016164,2]
[383402415,1756926668522,-665.89,0.00016164,2]
[383402416,1756926668532,-480.0,0.00016164,2]
[383402417,1756926668541,-546.65,0.00016164,2]
[383402418,1756926668551,-344.95,0.00016164,2]
[383402419,1756926668560,-642.37,0.00016164,2]
[383402420,1756926668570,-480.0,0.00016164,2]
[383402421,1756926668580,-480.0,0.00016164,2]
[383402422,1756926668590,-480.0,0.00016164,2]
[383402423,1756926668599,-480.0,0.00016164,2]
[383402424,1756926668610,-480.0,0.00016164,2]
[383402425,1756926668619,-168.0,0.00016183,2]
[383402426,1756926668629,-309.59351817,0.000162,7]
[383402427,1756926668639,-168.0,0.00016306,2]
[383402428,1756926668648,-261.0,0.00016325,2]
[383402429,1756926668657,-194.48002901,0.00016428,2]
[383402430,1756926668667,-500.0,0.00016438,2]
[383402431,1756926668676,-480.0,0.00016438,2]
[383402432,1756926668770,-480.0,0.00016438,2]
[383402433,1756926668780,-238.86915225,0.00016438,2]
[383402434,1756926668789,-587.34953461,0.00016438,2]
[383402435,1756926668798,-1073.25,0.00016438,2]
[383402436,1756926668808,-1250.12,0.00016438,2]
[383402437,1756926668818,-480.0,0.00016438,2]
[383402438,1756926668827,-729.5,0.00016438,2]
[383402439,1756926668836,-196.8,0.00016438,2]
[383402440,1756926668846,-685.98,0.00016438,2]
[383402441,1756926668855,-480.0,0.00016438,2]
[383402442,1756926668865,-722.82,0.00016438,2]
[383402443,1756926668876,-480.0,0.00016438,2]
[383402444,1756926668886,-2191.17,0.00016438,2]
[383402445,1756926668896,-672.58,0.00016438,2]
[383402446,1756926668906,-480.0,0.00016438,2]
[383402447,1756926668916,-480.0,0.00016438,2]
[383402448,1756926668925,-480.0,0.00016438,2]
[383402449,1756926668935,-480.0,0.00016438,2]
[383402450,1756926668944,-480.0,0.00016438,2]
[383402451,1756926668954,-839.49,0.00016438,2]
[383402452,1756926668963,-480.0,0.00016438,2]
[383402453,1756926668973,-480.0,0.00016438,2]
[383402454,1756926668982,-480.0,0.00016438,2]
[383402455,1756926668991,-665.89,0.00016438,2]
[383402456,1756926669001,-480.0,0.00016438,2]
[383402457,1756926669011,-546.65,0.00016438,2]
[383402458,1756926669020,-642.37,0.00016438,2]
[383402459,1756926669031,-480.0,0.00016438,2]
[383402460,1756926669041,-223.52,0.00016438,2]
[383402461,1756926669051,-357.23,0.00016438,2]
[383402462,1756926669060,-480.0,0.00016438,2]
[383402463,1756926669069,-168.0,0.0001645,2]
[383402464,1756926669080,-168.0,0.00016453,2]
[383402465,1756926669089,-1000.0,0.000165,2]
[383402466,1756926669100,-168.0,0.0001658,2]
[383402467,1756926669109,-81231.9280396,0.00016602,2]
[383402468,1756926669120,-168.0,0.00016665,2]
[383402469,1756926669131,-975.0,0.00016702,2]
[383402470,1756926669141,-633.0,0.00016702,2]
[383402471,1756926669151,-2153.0,0.00016702,2]
[383402472,1756926669161,-315.0,0.00016712,2]
[383402473,1756926669171,-151.092356,0.00016712,2]
[383402474,1756926669180,-422.42656633,0.00016712,2]
[383402475,1756926669189,-480.0,0.00016712,2]
[383402476,1756926669200,-1073.25,0.00016712,2]
[383402477,1756926669211,-1250.12,0.00016712,2]
[383402478,1756926669221,-480.0,0.00016712,2]
[383402479,1756926669231,-729.5,0.00016712,2]
[383402480,1756926669241,-685.98,0.00016712,2]
[383402481,1756926669252,-480.0,0.00016712,2]
[383402482,1756926669261,-722.82,0.00016712,2]
[383402483,1756926669271,-480.0,0.00016712,2]
[383402484,1756926669280,-2191.17,0.00016712,2]
[383402485,1756926669290,-672.58,0.00016712,2]
[383402486,1756926669301,-414.68,0.00016712,2]
[383402487,1756926669312,-480.0,0.00016712,2]
[383402488,1756926669322,-480.0,0.00016712,2]
[383402489,1756926669331,-480.0,0.00016712,2]
[383402490,1756926669341,-839.49,0.00016712,2]
[383402491,1756926669351,-480.0,0.00016712,2]
[383402492,1756926669360,-480.0,0.00016712,2]
[383402493,1756926669370,-480.0,0.00016712,2]
[383402494,1756926669380,-665.89,0.00016712,2]
[383402495,1756926669389,-480.0,0.00016712,2]
[383402496,1756926669399,-546.65,0.00016712,2]
[383402497,1756926669408,-642.37,0.00016712,2]
[383402498,1756926669418,-480.0,0.00016712,2]
[383402499,1756926669427,-480.0,0.00016712,2]
[383402500,1756926669437,-10313.5317258,0.00016757,2]
[383402501,1756926669447,-260.026,0.00016763,2]
[383402502,1756926669456,-150.0,0.00016791,2]
[383402503,1756926669465,-150.0,0.00016791,2]
[383402504,1756926669475,-261.0,0.00016847,2]
[383402505,1756926669484,-261.0,0.00016958,2]
[383402506,1756926669494,-480.0,0.00016986,2]
[383402507,1756926669503,-1073.25,0.00016986,2]
[383402508,1756926669513,-1250.12,0.00016986,2]
[383402509,1756926669522,-480.0,0.00016986,2]
[383402510,1756926669532,-729.5,0.00016986,2]
[383402511,1756926669541,-685.98,0.00016986,2]
[383402512,1756926669550,-480.0,0.00016986,2]
[383402513,1756926669560,-722.82,0.00016986,2]
[383402514,1756926669570,-304.01,0.00016986,2]
[383402515,1756926669580,-2191.17,0.00016986,2]
[383402516,1756926669590,-672.58,0.00016986,2]
[383402517,1756926669600,-570.16,0.00016986,2]
[383402518,1756926669609,-306.86,0.00016986,2]
[383402519,1756926669618,-401.66,0.00016986,2]
[383402520,1756926669628,-839.49,0.00016986,2]
[383402521,1756926669637,-480.0,0.00016986,2]
[383402522,1756926669646,-480.0,0.00016986,2]
[383402523,1756926669656,-480.0,0.00016986,2]
[383402524,1756926669665,-665.89,0.00016986,2]
[383402525,1756926669673,-480.0,0.00016986,2]
[383402526,1756926669682,-546.65,0.00016986,2]
[383402527,1756926669690,-642.37,0.00016986,2]
[383402528,1756926669700,-480.0,0.00016986,2]
[383402529,1756926669709,-528.37213319,0.00016986,2]
[383402530,1756926669717,-1000.0,0.00017,2]
[383402531,1756926669726,-261.0,0.00017009,2]
[383402532,1756926669736,-168.0,0.00017045,2]
[383402533,1756926669746,-168.0,0.00017065,2]
[383402534,1756926669758,-261.0,0.00017066,2]
[383402535,1756926669768,-168.0,0.00017117,2]
[383402536,1756926669779,-480.0,0.0001726,2]
[383402537,1756926669788,-1073.25,0.0001726,2]
[383402538,1756926669797,-1250.12,0.0001726,2]
[383402539,1756926669807,-480.0,0.0001726,2]
[383402540,1756926669816,-729.5,0.0001726,2]
[383402541,1756926669826,-685.98,0.0001726,2]
[383402542,1756926669835,-480.0,0.0001726,2]
[383402543,1756926669845,-722.82,0.0001726,2]
[383402544,1756926669854,-2191.17,0.0001726,2]
[383402545,1756926669864,-672.58,0.0001726,2]
[383402546,1756926669874,-839.49,0.0001726,2]
[383402547,1756926669883,-161.07,0.0001726,2]
[383402548,1756926669893,-480.0,0.0001726,2]
[383402549,1756926669903,-480.0,0.0001726,2]
[383402550,1756926669913,-665.89,0.0001726,2]
[383402551,1756926669922,-480.0,0.0001726,2]
[383402552,1756926669932,-546.65,0.0001726,2]
[383402553,1756926669942,-642.37,0.0001726,2]
[383402554,1756926669952,-480.0,0.0001726,2]
[383402555,1756926669961,-168.0,0.00017312,2]
[383402556,1756926669971,-261.0,0.00017323,2]
[383402557,1756926669981,-2301.2599856,0.0001735,2]
[383402558,1756926669990,-168.0,0.00017392,2]
[383402559,1756926669999,-168.0,0.00017416,2]
[383402560,1756926670009,-1000.0,0.000175,2]
[383402561,1756926670019,-480.0,0.00017534,2]
[383402562,1756926670029,-1073.25,0.00017534,2]
[383402563,1756926670039,-1250.12,0.00017534,2]
[383402564,1756926670049,-480.0,0.00017534,2]
[383402565,1756926670058,-729.5,0.00017534,2]
[383402566,1756926670068,-685.98,0.00017534,2]
[383402567,1756926670078,-480.0,0.00017534,2]
[383402568,1756926670088,-722.82,0.00017534,2]
[383402569,1756926670098,-2191.17,0.00017534,2]
[383402570,1756926670108,-672.58,0.00017534,2]
[383402571,1756926670118,-839.49,0.00017534,2]
[383402572,1756926670128,-480.0,0.00017534,2]
[383402573,1756926670138,-480.0,0.00017534,2]
[383402574,1756926670149,-665.89,0.00017534,2]
[383402575,1756926670163,-480.0,0.00017534,2]
[383402576,1756926670174,-546.65,0.00017534,2]
[383402577,1756926670189,-642.37,0.00017534,2]
[383402578,1756926670200,-480.0,0.00017534,2]
[383402579,1756926670210,-864.0,0.00017581,2]
[383402580,1756926670220,-551.65801118,0.00017808,2]
[383402581,1756926670324,-1073.25,0.00017808,2]
[383402582,1756926670334,-1250.12,0.00017808,2]
[383402583,1756926670345,-480.0,0.00017808,2]
[383402584,1756926670355,-729.5,0.00017808,2]
[383402585,1756926670364,-685.98,0.00017808,2]
[383402586,1756926670374,-480.0,0.00017808,2]
[383402587,1756926670384,-722.82,0.00017808,2]
[383402588,1756926670394,-2191.17,0.00017808,2]
[383402589,1756926670404,-672.58,0.00017808,2]
[383402590,1756926670414,-839.49,0.00017808,2]
[383402591,1756926670423,-480.0,0.00017808,2]
[383402592,1756926670434,-480.0,0.00017808,2]
[383402593,1756926670444,-665.89,0.00017808,2]
[383402594,1756926670453,-480.0,0.00017808,2]
[383402595,1756926670463,-546.65,0.00017808,2]
[383402596,1756926670472,-642.37,0.00017808,2]
[383402597,1756926670482,-480.0,0.00017808,2]
[383402598,1756926670491,-500.0,0.00017926,2]
[383402599,1756926670501,-1000.0,0.00018,2]
[383402600,1756926670510,-500.0,0.00018014,2]
[383402601,1756926670519,-468.37,0.00018082,2]
[383402602,1756926670531,-1073.25,0.00018082,2]
[383402603,1756926670542,-1250.12,0.00018082,2]
[383402604,1756926670551,-480.0,0.00018082,2]
[383402605,1756926670561,-729.5,0.00018082,2]
[383402606,1756926670570,-685.98,0.00018082,2]
[383402607,1756926670579,-185.75206346,0.00018082,2]
[383402608,1756926670773,-480.0,0.0001452,2]
[383402609,1756926670784,-294.24793654,0.00018082,2]
[383402610,1756926670794,-722.82,0.00018082,2]
[383402611,1756926670804,-2191.17,0.00018082,2]
[383402612,1756926670814,-672.58,0.00018082,2]
[383402613,1756926670824,-839.49,0.00018082,2]
[383402614,1756926670833,-608.57,0.00018082,2]
[383402615,1756926670843,-480.0,0.00018082,2]
[383402616,1756926670853,-665.89,0.00018082,2]
[383402617,1756926670862,-480.0,0.00018082,2]
[383402618,1756926670872,-546.65,0.00018082,2]
[383402619,1756926670882,-642.37,0.00018082,2]
[383402620,1756926670892,-480.0,0.00018082,2]
[383402621,1756926670902,-1073.25,0.00018356,2]
[383402622,1756926670912,-1250.12,0.00018356,2]
[383402623,1756926670921,-480.0,0.00018356,2]
[383402624,1756926670931,-729.5,0.00018356,2]
[383402625,1756926670941,-685.98,0.00018356,2]
[383402626,1756926670950,-480.0,0.00018356,2]
[383402627,1756926670960,-722.82,0.00018356,2]
[383402628,1756926670970,-2191.17,0.00018356,2]
[383402629,1756926670980,-672.58,0.00018356,2]
[383402630,1756926670990,-839.49,0.00018356,2]
[383402631,1756926670999,-480.0,0.00018356,2]
[383402632,1756926671009,-665.89,0.00018356,2]
[383402633,1756926671019,-480.0,0.00018356,2]
[383402634,1756926671028,-546.65,0.00018356,2]
[383402635,1756926671037,-642.37,0.00018356,2]
[383402636,1756926671047,-480.0,0.00018356,2]
[383402637,1756926671056,-151.0,0.000185,2]
[383402638,1756926671066,-1000.0,0.000185,2]
[383402639,1756926671075,-1073.25,0.0001863,2]
[383402640,1756926671085,-1250.12,0.0001863,2]
[383402641,1756926671094,-480.0,0.0001863,2]
[383402642,1756926671103,-729.5,0.0001863,2]
[383402643,1756926671113,-685.98,0.0001863,2]
[383402644,1756926671122,-192.5,0.0001863,2]
[383402645,1756926671131,-722.82,0.0001863,2]
[383402646,1756926671141,-2191.17,0.0001863,2]
[383402647,1756926671150,-672.58,0.0001863,2]
[383402648,1756926671159,-839.49,0.0001863,2]
[383402649,1756926671169,-480.0,0.0001863,2]
[383402650,1756926671179,-665.89,0.0001863,2]
[383402651,1756926671189,-480.0,0.0001863,2]
[383402652,1756926671198,-546.65,0.0001863,2]
[383402653,1756926671208,-642.37,0.0001863,2]
[383402654,1756926671218,-480.0,0.0001863,2]
[383402655,1756926671227,-500.0,0.00018869,2]
[383402656,1756926671236,-1073.25,0.00018904,2]
[383402657,1756926671246,-1250.12,0.00018904,2]
[383402658,1756926671255,-565.19,0.00018904,2]
[383402659,1756926671265,-729.5,0.00018904,2]
[383402660,1756926671275,-685.98,0.00018904,2]
[383402661,1756926671285,-722.82,0.00018904,2]
[383402662,1756926671295,-2191.17,0.00018904,2]
[383402663,1756926671308,-672.58,0.00018904,2]
[383402664,1756926671317,-839.49,0.00018904,2]
[383402665,1756926671327,-480.0,0.00018904,2]
[383402666,1756926671336,-480.0,0.00018904,2]
[383402667,1756926671346,-665.89,0.00018904,2]
[383402668,1756926671356,-546.65,0.00018904,2]
[383402669,1756926671366,-642.37,0.00018904,2]
[383402670,1756926671375,-480.0,0.00018904,2]
[383402671,1756926671384,-1000.0,0.00019,2]
[383402672,1756926671395,-141844.42681157,0.00019063,7]
[383402673,1756926671405,-10565.36259732,0.0001907,7]
[383402674,1756926671415,-417.15472785,0.000191,7]
[383402675,1756926671424,-160.0,0.000191,7]
[383402676,1756926671434,-530.32150586,0.000191,7]
[383402677,1756926671444,-1073.25,0.00019178,2]
[383402678,1756926671453,-1250.12,0.00019178,2]
[383402679,1756926671463,-729.5,0.00019178,2]
[383402680,1756926671472,-685.98,0.00019178,2]
[383402681,1756926671481,-722.82,0.00019178,2]
[383402682,1756926671491,-2191.17,0.00019178,2]
[383402683,1756926671500,-672.58,0.00019178,2]
[383402684,1756926671510,-839.49,0.00019178,2]
[383402685,1756926671519,-480.0,0.00019178,2]
[383402686,1756926671529,-467.02,0.00019178,2]
[383402687,1756926671538,-665.89,0.00019178,2]
[383402688,1756926671547,-546.65,0.00019178,2]
[383402689,1756926671556,-642.37,0.00019178,2]
[383402690,1756926671566,-355.83,0.00019178,2]
[383402691,1756926671575,-1000.0,0.00019339,20]
[383402692,1756926671584,-1731.0,0.00019353,2]
[383402693,1756926671594,-1180.84922548,0.00019353,2]
[383402694,1756926671604,-1731.0,0.00019353,2]
[383402695,1756926671693,-1731.0,0.00019353,2]
[383402696,1756926671703,-1731.0,0.00019353,2]
[383402697,1756926671714,-1731.0,0.00019353,2]
[383402698,1756926671723,-1731.0,0.00019353,2]
[383402699,1756926671732,-1731.0,0.00019353,2]
[383402700,1756926671742,-1731.0,0.00019353,2]
[383402701,1756926671751,-1731.0,0.00019353,2]
[383402702,1756926671764,-1731.0,0.00019353,2]
[383402703,1756926671774,-506.37813862,0.00019353,2]
[383402704,1756926671784,-168.0,0.00019448,2]
[383402705,1756926671793,-1073.25,0.00019452,2]
[383402706,1756926671803,-1250.12,0.00019452,2]
[383402707,1756926671812,-729.5,0.00019452,2]
[383402708,1756926671822,-685.98,0.00019452,2]
[383402709,1756926671831,-722.82,0.00019452,2]
[383402710,1756926671841,-2191.17,0.00019452,2]
[383402711,1756926671852,-672.58,0.00019452,2]
[383402712,1756926671861,-839.49,0.00019452,2]
[383402713,1756926671871,-192.04,0.00019452,2]
[383402714,1756926671881,-665.89,0.00019452,2]
[383402715,1756926671890,-546.65,0.00019452,2]
[383402716,1756926671900,-642.37,0.00019452,2]
[383402717,1756926671909,-1000.0,0.000195,2]
[383402718,1756926671919,-2700.0,0.0001952,2]
[383402719,1756926671928,-3063.86580638,0.000197,2]
[383402720,1756926671938,-648.0,0.000197,2]
[383402721,1756926671947,-975.0,0.00019702,2]
[383402722,1756926671956,-630.0,0.00019702,2]
[383402723,1756926671965,-2153.0,0.00019702,2]
[383402724,1756926671975,-1073.25,0.00019726,2]
[383402725,1756926671985,-1250.12,0.00019726,2]
[383402726,1756926671995,-729.5,0.00019726,2]
[383402727,1756926672005,-685.98,0.00019726,2]
[383402728,1756926672015,-722.82,0.00019726,2]
[383402729,1756926672024,-2191.17,0.00019726,2]
[383402730,1756926672034,-672.58,0.00019726,2]
[383402731,1756926672043,-839.49,0.00019726,2]
[383402732,1756926672053,-665.89,0.00019726,2]
[383402733,1756926672062,-546.65,0.00019726,2]
[383402734,1756926672072,-642.37,0.00019726,2]
[383402735,1756926672081,-150.0,0.00019791,2]
[383402736,1756926672091,-500.0,0.00019812,2]